Cogmind - Beta 12 @@@ ROGUE MODE // 2023.12.02 @ 18:54:22 Player: charson Result: Destroyed by D-53 Grenadier with Mini Grenade Launcher Performance ------------- Evolutions (0) 0 Regions Visited (2) 400 Robots Destroyed (16) 80 Value Destroyed (280) 280 Prototype IDs (0) 0 Alien Tech Used (0) 0 Bonus (0) 0 TOTAL SCORE: 760 Bonus ------- None Cogmind --------- Core Integrity 0/250 Matter 300/300 Energy 89/100 System Corruption 1% Temperature Cool (0) Movement Core (50) Location -10/Mines Parts ------- > --- POWER (1) -------- (None) > --- PROPULSION (2) --- (None) > --- UTILITY (2) ------ Improved Terrain Scanner Seismic Detector > --- WEAPON (2) ------- (None) > --- INVENTORY (5) ---- Improved Heat Sink Medium Matter Pod (100) Terrain Scanner Datajack Mining Laser Peak State ------------ > --- POWER ------------ (None) > --- PROPULSION ------- (None) > --- UTILITY ---------- Terrain Scanner Improved Terrain Scanner > --- WEAPON ----------- Particle Gun Assault Rifle > --- INVENTORY -------- Improved Heat Sink Medium Matter Pod Terrain Scanner Datajack Mining Laser [Rating: 7] Favorites ----------- Power None Propulsion None Utility Terrain Scanner Device Terrain Scanner Weapon EM Pulse Gun Energy Gun EM Pulse Gun Ballistic Gun Assault Rifle Build | -11 -10 -10 ------- Run | Jun Mat Min Slots Evolved . | . . . Power . | . . . Propulsion . | . . . Utility . | . . . Weapon . | . . . Parts Attached 9 | 3 . 6 Power . | . . . Engine . | . . . Core . | . . . Reactor . | . . . Propulsion . | . . . Treads . | . . . Leg . | . . . Wheel . | . . . Hover . | . . . Flight . | . . . Utility 5 | 1 . 4 Device 5 | 1 . 4 Storage . | . . . Processor . | . . . Hackware . | . . . Protection . | . . . Artifact . | . . . Weapon 4 | 2 . 2 Energy Gun 3 | 2 . 1 Energy Cannon . | . . . Ballistic Gun 1 | . . 1 Ballistic Cannon . | . . . Launcher . | . . . Special Weapon . | . . . Impact Weapon . | . . . Slashing Weapon . | . . . Piercing Weapon . | . . . Special Melee Weapon . | . . . Unidentified Prototypes . | . . . Parts Lost 5 | . . 5 Power . | . . . Propulsion . | . . . Utility 1 | . . 1 Weapon 4 | . . 4 Highest Loss Streak 3 | . . 3 To Critical Strikes . | . . . Average Slot Usage (%) 48 | . 42 50 Device 21 | . 14 22 Energy Gun 17 | . 28 14 Ballistic Gun 9 | . . 12 Naked Turns . | . . . Heaviest Build 7 | 5 5 7 Greatest Support 3 | 3 3 3 Greatest Overweight (x) 2 | 1 1 2 Average Overweight (x) 1 | . 1 1 Largest Inventory Capacity 5 | 5 5 5 Average Capacity 5 | 5 5 5 Most Carried 5 | 1 4 5 Average Carried 3 | . 1 4 Final Capacity 5 | 5 5 5 Final Carried 5 | 1 4 5 Class Distribution -------------------- 100% | Mutant Dominant Class ---------------- Mutant | -10/Materials Mutant | -10/Mines Resources | -11 -10 -10 ----------- Run | Jun Mat Min Matter Collected 444 | 201 29 214 Remotely . | . . . Salvage Created 582 | 103 79 400 Parts 39 | 4 8 27 Haulers Intercepted . | . . . Recyclers Shooed 2 | . . 2 Parts Field Recycled . | . . . Retrieved Matter . | . . . Parts Self-Destructed . | . . . Prevented . | . . . Kills | -11 -10 -10 ------- Run | Jun Mat Min Combat Hostiles Destroyed 9 | . 4 5 Guns 7 | . 2 5 AOE 2 | . 2 . Classes Destroyed 7 | 2 2 3 Worker 1 | . . 1 Builder 2 | . . 2 Tunneler 3 | 1 . 2 Recycler 2 | 1 . 1 Swarmer 3 | . 3 . Grunt 5 | . 1 4 Assembled 1 | . . 1 Best Kill Streak 5 | 1 3 5 Combat Bots Only 3 | . 3 2 Max Kills in Single Turn 3 | 1 2 3 Gunslinging . | . . . Exploded 2 | . 2 . Melee . | . . . Uniques/NPCs Destroyed . | . . . Combat | -11 -10 -10 -------- Run | Jun Mat Min Damage Taken 561 | 26 75 460 Core 255 | 13 29 213 Absorbed by Shields . | . . . Core Remaining (%) 94 | 94 . . Volleys Fired 44 | 6 8 30 Largest 2 | 2 2 2 Hottest 85 | 80 80 85 Shots Fired 82 | 12 16 54 Gun 82 | 12 16 54 Cannon . | . . . Launcher . | . . . Special . | . . . Kinetic 25 | . . 25 Thermal 20 | . . 20 Explosive . | . . . Electromagnetic 37 | 12 16 9 Robot Hit Streak 10 | 2 6 10 Robot Miss Streak 4 | 2 4 4 Penetration Max . | . . . Secondary Targets . | . . . Shots Hit Robots 48 | 7 8 33 Core Hits 26 | 3 5 18 Critical Kills . | . . . Critical Parts Destroyed . | . . . Critical Strikes 1 | . . 1 Burn 1 | . . 1 Melee Attacks . | . . . Impact . | . . . Slashing . | . . . Piercing . | . . . Sneak Attacks . | . . . Combat Hostiles . | . . . Follow-up Attacks . | . . . Damage Inflicted 999 | 124 222 653 Guns 641 | 79 100 462 Cannons . | . . . Explosions 347 | 45 122 180 Melee . | . . . Ramming 11 | . . 11 Kinetic 151 | . . 151 Thermal 572 | 45 122 405 Explosive . | . . . Electromagnetic 265 | 79 100 86 Impact . | . . . Slashing . | . . . Piercing . | . . . Highest Corruption 1 | . . 1 Average Corruption 1 | . . 1 Corruption Purged . | . . . Corruption Blocked . | . . . Overload Shots . | . . . Overflow Damage 7 | . . 7 Projectiles . | . . . Explosions 7 | . . 7 Melee . | . . . Knockbacks . | . . . Impact . | . . . Kinetic . | . . . Secondary . | . . . Self-Inflicted Damage 102 | 27 31 44 Shots 3 | 1 1 1 Rammed 3 | . . 3 Targets Rammed 3 | . . 3 Kicked . | . . . Crushed . | . . . Highest Temperature 174 | 15 18 174 Average Temperature 28 | 5 8 40 Received Heat Transfer 176 | . 6 170 Siege Activations . | . . . Robots Corrupted . | . . . Combat Hostiles . | . . . Parts Fried . | . . . Impact Corruptions . | . . . Robots Melted . | . . . Combat Hostiles . | . . . Parts Melted . | . . . Heat Transferred 992 | 50 150 792 Parts Sabotaged . | . . . Parts Stolen . | . . . Parts Stripped . | . . . Power Chain Reactions 5 | 1 2 2 Missiles Intercepted . | . . . Alert | -11 -10 -10 ------- Run | Jun Mat Min Peak Influence 203 | 10 184 203 Initial 71 | . 6 71 Average 101 | 5 91 115 Maximum Alert Level 1 | . . 1 Low Security (%) 98 | 100 100 98 Level 1 1 | . . 1 Level 2 . | . . . Level 3 . | . . . Level 4 . | . . . Level 5 . | . . . High Security . | . . . Max Security . | . . . Squads Dispatched 2 | . 2 . Investigation . | . . . Extermination . | . . . Reinforcement 2 | . 2 . Assault . | . . . Garrison . | . . . Intercept . | . . . Searches Triggered . | . . . Construction Impeded . | . . . Haulers Reinforced . | . . . Active Scanning Responses . | . . . Cargo Convoy Interrupts . | . . . Stealth | -11 -10 -10 --------- Run | Jun Mat Min Distress Signals . | . . . Communications Jammed . | . . . Distress Signals . | . . . Times Spotted 28 | . 8 20 Peak Tracking Total 16 | . 3 16 Tactical Retreats 2 | . . 2 Traps | -11 -10 -10 ------- Run | Jun Mat Min Traps Triggered . | . . . Indirectly . | . . . Trap Hack Attempts . | . . . Triggered . | . . . Disarmed . | . . . Reprogrammed . | . . . Reused . | . . . Traps Extracted . | . . . Installed . | . . . Triggered . | . . . Machines | -11 -10 -10 ---------- Run | Jun Mat Min Machines Disabled 1 | . 1 . Max in Single Turn 1 | . 1 . Machines Repaired . | . . . Machines Sabotaged . | . . . Overloaded Fab Kills . | . . . Hacking | -11 -10 -10 --------- Run | Jun Mat Min Machines Accessed 2 | . 1 1 Terminals 2 | . 1 1 Fabricators . | . . . Repair Stations . | . . . Recycling Units . | . . . Scanalyzers . | . . . Garrison Access . | . . . Total Hacks 9 | . 4 5 Successful 5 | . 2 3 Failed 4 | . 2 2 Catastrophic . | . . . Database Lockouts . | . . . Manual 7 | . 3 4 Terminals 9 | . 4 5 Fabricators . | . . . Repair Stations . | . . . Recycling Units . | . . . Scanalyzers . | . . . Garrison Access . | . . . Terminal Hacks 4 | . 1 3 Record 1 | . . 1 Robot Analysis 2 | . . 2 Zone Layout 1 | . 1 . Fabricator Hacks . | . . . Repair Station Hacks . | . . . Recycling Unit Hacks . | . . . Scanalyzer . | . . . Garrison Access Hacks . | . . . Unauthorized Hacks 1 | . 1 . Terminals 1 | . 1 . Botnet 1 | . 1 . Fabricators . | . . . Repair Stations . | . . . Recycling Units . | . . . Scanalyzers . | . . . Garrison Access . | . . . Data Cores Recovered . | . . . Used . | . . . Hacking Detections 2 | . 1 1 Full Trace Events 1 | . . 1 Feedback Events . | . . . Feedback Blocked . | . . . Robot Schematics Acquired . | . . . Robots Built . | . . . Authchips . | . . . Time . | . . . Total Robot Build Rating . | . . . Part Schematics Acquired . | . . . Parts Built . | . . . Authchips . | . . . Time . | . . . Total Part Build Rating . | . . . Parts Repaired . | . . . Time . | . . . Parts Recycled . | . . . Recycled Matter . | . . . Retrieved Matter . | . . . Retrieved Components . | . . . Parts Scanalyzed . | . . . Part Schematics Acquired . | . . . Parts Damaged . | . . . Bothacking | -11 -10 -10 ------------ Run | Jun Mat Min Used RIF Installer . | . . . Robots Hacked . | . . . Non-combat . | . . . Combat . | . . . Robot Hacks Applied . | . . . Relay Couplers Released . | . . . Fabnet Peak Effective % . | . . . Robots Rewired . | . . . Allies Hacked . | . . . Hacks Repelled . | . . . Allies | -11 -10 -10 -------- Run | Jun Mat Min Total Allies . | . . . Largest Group . | . . . Highest-Rated Group . | . . . Highest-Rated Ally . | . . . Total Orders . | . . . Ally Attacks . | . . . Total Damage . | . . . Kills . | . . . Allies Corrupted . | . . . Allies Melted . | . . . Intel | -11 -10 -10 ------- Run | Jun Mat Min Robot Analysis Total 2 | . . 2 Derelict Logs Recovered 1 | . . 1 Drone Launches . | . . . Drone Recoveries . | . . . Exploration | -11 -10 -10 ------------- Run | Jun Mat Min Turns Passed 655 | 56 122 477 Spaces Moved 404 | 28 85 291 Core 404 | 28 85 291 Treads . | . . . Legs . | . . . Wheels . | . . . Hover . | . . . Flight . | . . . Fastest Speed 50 | 50 100 50 Average Speed 120 | 89 100 128 Slowest Speed 150 | 100 100 150 Overloaded Moves . | . . . Propulsion Burnouts . | . . . Robots Hopped . | . . . Cave-ins Triggered . | . . . Exploration Rate (%) 23 | 4 18 47 Regions Visited 2 Branch Regions 1 Pre-discovered Areas . | . . . Known Exits Taken . | . . . Unknown Exits Taken 2 | 1 1 . Scrap Searched 1 | . . 1 Spaces Dug . | . . . Terrain Destroyed 19 | 4 4 11 Melee . | . . . Projectile . | . . . AOE 19 | 4 4 11 Terrain Rammed . | . . . Walls Destroyed . | . . . Machines Disabled . | . . . Actions | -11 -10 -10 --------- Run | Jun Mat Min Total 488 | 45 106 337 Wait 24 | 8 11 5 Move 402 | 27 84 291 Hop . | . . . Pick Up 5 | 1 3 1 Fast Attach 7 | 3 . 4 Attach 1 | . . 1 Detach . | . . . Swap 1 | . . 1 Drop 1 | . . 1 Fire 44 | 6 8 30 Melee . | . . . Ram 3 | . . 3 Kick . | . . . Crush . | . . . Escape Stasis . | . . . Rewire . | . . . Trap . | . . . Miscellaneous . | . . . Route ------- -11/Junkyard -10/Materials -10/Mines (discovered 2 exits: [*Mat x2]) History --------- Turn | Location | Event 9 | -11/Junkyard | Discovered new exit (range 16) 57 | -11/Junkyard | Entered Materials 165 | -10/Materials | Discovered new exit (range 9) 179 | -10/Materials | Entered Mines 190 | -10/Mines | Discovered new exit (range 9) 199 | -10/Mines | Learned Materials trap positions 260 | -10/Mines | Lost 3 parts (1u2w) 304 | -10/Mines | Build established: Mutant 409 | -10/Mines | Discovered new exit (range 9) 448 | -10/Mines | Core integrity fell below 50% 623 | -10/Mines | Assembled infested the area 628 | -10/Mines | Assisted by a Guerilla fighting off Assembled 654 | -10/Mines | Core integrity fell below 20% 656 | -10/Mines | Destroyed by D-53 Grenadier with Mini Grenade Launcher Last Messages --------------- 00583_ Acquired 10 matter. 00623_ ALERT: Infestation in the mines, dispatching Demolisher response squad. 00645_ as-72067 destroyed. 00647_ Assault Rifle destroyed. 00649_ C-30 ARC bursts open, deploying its payload. 00649_ D-53 Grenadier unfolds itself. 00650_ Particle Gun destroyed. 00650_ Slammed into as-87894. 00650_ Destabilizing: System corrupted (+1). 00651_ Slammed into as-87894. 00652_ Slammed into as-95593. 00654_ 1Y-1UT(h): "I'll hold them off! Go on ahead or try to find another way!" 00654_ HV Slug penetrates D-53 Grenadier. 00654_ D-53 Grenadier suffers critical hit (Destroy). 00654_ HV Slug penetrates D-53 Grenadier. 00654_ D-53 Grenadier suffers critical hit (Destroy). 00654_ D-53 Grenadier knocked back. 00654_ HV Slug penetrates D-53 Grenadier. Map ----- +----------------------------------------------------+ | | | | | | | | | | | | | | | ??#?????????????#????????????????????????????????? | | ??????????#???#??##??????????????????????????????? | | ???????#?????? ?? ??????????????????????????????? | | ????#???????#? ??" ??????????????????????????????? | | ####?#???????? """ "???"""????????#??????????????? | | ?# ####?#???## """ """ """???????????????????????? | | ?# #######?## ?????????#?????????????? | | ?# *%= #??# """ """ """ #????????????????????? | | ## =%=!* #??# """ """ """ #??#?????????????????? | | # =[### #??# """ """ """ #?????????#??????????? | | ! |#?# #??# ?????#???????????????? | | = #?# #??# """ < """ ?????????????????????? | | ##?# ##?# """ """ #????????????? ??????? | | ###?# #### """ """ #?????????#??????????? | | ####???# !% #??#????????#????????? | | ??????## ## # #?????????????????#??? | | ?###### ## ################????????????? ??????? | | ?# ### ##????#???## ####??????????#????????? | | ?# ### ### ########### @ #####???????????????? | | ## ### ## #""%" dd h aaa%#??????? ?#?????? | | ## ## ######## ###%###?????????????? | | ###### ## #??????# #### ##????????????? | | #????# ### ####??????######?# # #??????????? | | #????## ##?# #????????????????# #??????????? | | #?????###??# #????????????????## #????????? | | #??#??????## #?????????????????## #???????? | | #?#??#?????# #??????# ??????????## #??????? | | #???#??????# #???????????????????### #??????? | | #?#????????# #???????#????????? ???## #???#??? | | #??????????# #?????#?????? ? ???????? #??????? | | #??????????? ??????#????????????????? ?????? | | #????????#?? ????????????????????????# ????? | | #??????????? ??????????????? ?????????# #???? | | #??????????? ??????????????????????????# #???? | | #???????????#???????#???????????????????# ##???? | | #????????????????????????????????????????# #????? | | ??#?? """ ?????????????????????????????????????? | | ### ????????????????????????????????????? | | ????????????????????????????????????? | | ????????????????????????????????????? | | # #???????????????????????????????????????? | | ?? ##???????????????????????????????????????? | | ???? #????????????????????????????????????????? | +----------------------------------------------------+ Best States ------------- Heat Dissipation 25 Energy Generation 5 Energy Capacity 100 Matter Stores 300 Matter Capacity 300 Sight Range 16 Terrain Scan Range 16 Terrain Scan Density 10 Evasion (%) 50 Item Schematics ----------------- None Robot Schematics ------------------ None Fabricated ------------ Nothing Alien Tech Used ----------------- None Achievements -------------- None Challenges ------------ None Game ------ Seed AlphaSupersonicGuard Manual? 0 Play Time 00:06:48 Cumulative 45.7 hours Start 2023.12.02 @ 18:50:02 End 2023.12.02 @ 18:54:22 Sessions 1 Manual Loads 0 Difficulty Rogue Special Mode None Game No. 30 Rogue 30 Adventurer 0 Explorer 0 Win Type - Total 0 Types 0/0/0/0/0/0/0/0/0 Lore% 46 Gallery% 52 Achievement% 45 Wizard Run 0 Options --------- ASCII 0 Keyboard 1 Movement Numpad Keybinds 0 Fullscreen 1 Font 18/SmallcapsGlow Map View 76x50 Tactical HUD 1 Map Filters NONE Filters NONE Steam 1 RUN: 38b3c19b-9650-4153-872f-441037b202ce